[Event "Titled Tuesday Blitz May 30 Late 2023"]
[White "Henriquez Villagra, Cristobal"]
[Black "The_Sherman_Variation"]
[WhiteFideId "3409350"]
[WhiteElo "2542"]
[BlackElo "2497"]
[Result "1-0"]
[Round "01"]
[TimeControl "180+2"]
[Date "2023.05.31"]
[WhiteClock "0:02:10"]
[BlackClock "0:01:14"]

1. e4 {[%clk 0:02:54]}  b6 {[%clk 0:02:57]} 2. d4 {[%clk 0:02:54]}  Bb7 {[%clk 0:02:58]} 3. Bd3 {[%clk 0:02:54]}  g6 {[%clk 0:02:58]} 4. c4 {[%clk 0:02:51]}  Bg7 {[%clk 0:02:58]} 5. Ne2 {[%clk 0:02:51]}  d6 {[%clk 0:02:57]} 6. Nbc3 {[%clk 0:02:51]}  Nd7 {[%clk 0:02:58]} 7. O-O {[%clk 0:02:52]}  Ngf6 {[%clk 0:02:57]} 8. Bc2 {[%clk 0:02:41]}  e5 {[%clk 0:02:51]} 9. d5 {[%clk 0:02:40]}  a5 {[%clk 0:02:45]} 10. f4 {[%clk 0:02:39]}  exf4 {[%clk 0:02:37]} 11. Bxf4 {[%clk 0:02:39]}  O-O {[%clk 0:02:37]} 12. Qd2 {[%clk 0:02:40]}  Re8 {[%clk 0:02:30]} 13. Nd4 {[%clk 0:02:40]}  Qe7 {[%clk 0:02:27]} 14. Rae1 {[%clk 0:02:40]}  Nh5 {[%clk 0:02:15]} 15. Be3 {[%clk 0:02:39]}  Ne5 {[%clk 0:02:12]} 16. Qe2 {[%clk 0:02:37]}  Rf8 {[%clk 0:01:58]} 17. Ba4 {[%clk 0:02:35]}  Bc8 {[%clk 0:01:52]} 18. Nc6 {[%clk 0:02:35]}  Nxc6 {[%clk 0:01:52]} 19. Bxc6 {[%clk 0:02:35]}  Rb8 {[%clk 0:01:52]} 20. Qd2 {[%clk 0:02:33]}  Be5 {[%clk 0:01:45]} 21. Bg5 {[%clk 0:02:31]}  f6 {[%clk 0:01:43]} 22. Bh6 {[%clk 0:02:31]}  Rf7 {[%clk 0:01:44]} 23. Nb5 {[%clk 0:02:30]}  f5 {[%clk 0:01:41]} 24. Bg5 {[%clk 0:02:22]}  Qf8 {[%clk 0:01:40]} 25. exf5 {[%clk 0:02:22]}  Bxf5 {[%clk 0:01:39]} 26. Rxe5 {[%clk 0:02:18]}  dxe5 {[%clk 0:01:37]} 27. d6 {[%clk 0:02:19]}  cxd6 {[%clk 0:01:35]} 28. Bd5 {[%clk 0:02:19]}  Rd8 {[%clk 0:01:28]} 29. Bxf7+ {[%clk 0:02:17]}  Kxf7 {[%clk 0:01:27]} 30. g4 {[%clk 0:02:17]}  Rd7 {[%clk 0:01:14]} 31. gxf5 {[%clk 0:02:10]} 1-0


[Site "https://www.chess.com"]

[Event "Titled Tuesday Blitz May 30 Late 2023"]
[White "Ljukin, Sergei"]
[Black "Rasulov, Vugar"]
[WhiteFideId "14102200"]
[BlackFideId "13402390"]
[WhiteElo "2312"]
[BlackElo "2509"]
[Result "0-1"]
[Round "01"]
[TimeControl "180+2"]
[Date "2023.05.31"]
[WhiteClock "0:00:03"]
[BlackClock "0:01:22"]

1. e4 {[%clk 0:03:00]}  e5 {[%clk 0:02:59]} 2. Nf3 {[%clk 0:02:59]}  Nc6 {[%clk 0:03:00]} 3. Bb5 {[%clk 0:02:59]}  a6 {[%clk 0:03:00]} 4. Ba4 {[%clk 0:02:59]}  Nf6 {[%clk 0:03:00]} 5. Qe2 {[%clk 0:02:59]}  b5 {[%clk 0:02:59]} 6. Bb3 {[%clk 0:02:59]}  Bc5 {[%clk 0:03:00]} 7. c3 {[%clk 0:03:00]}  O-O {[%clk 0:03:00]} 8. d3 {[%clk 0:03:00]}  d6 {[%clk 0:02:58]} 9. Bg5 {[%clk 0:03:00]}  h6 {[%clk 0:02:53]} 10. Bh4 {[%clk 0:03:00]}  Bb6 {[%clk 0:02:48]} 11. Nbd2 {[%clk 0:02:59]}  Be6 {[%clk 0:02:47]} 12. Bd5 {[%clk 0:02:58]}  Bxd5 {[%clk 0:02:41]} 13. exd5 {[%clk 0:02:58]}  Nb8 {[%clk 0:02:36]} 14. Ne4 {[%clk 0:02:56]}  Nbd7 {[%clk 0:02:33]} 15. g4 {[%clk 0:02:49]}  g5 {[%clk 0:02:22]} 16. Nexg5 {[%clk 0:02:11]}  hxg5 {[%clk 0:02:18]} 17. Bxg5 {[%clk 0:02:11]}  Qe8 {[%clk 0:02:12]} 18. Nh4 {[%clk 0:01:52]}  Nxd5 {[%clk 0:02:02]} 19. Nf5 {[%clk 0:01:52]}  f6 {[%clk 0:02:00]} 20. Bh6 {[%clk 0:01:10]}  Nf4 {[%clk 0:01:57]} 21. Qf3 {[%clk 0:01:01]}  Qe6 {[%clk 0:01:53]} 22. Bxf8 {[%clk 0:00:55]}  Rxf8 {[%clk 0:01:53]} 23. h4 {[%clk 0:00:39]}  Nc5 {[%clk 0:01:51]} 24. Rd1 {[%clk 0:00:30]}  Kh7 {[%clk 0:01:41]} 25. O-O {[%clk 0:00:19]}  Qd5 {[%clk 0:01:38]} 26. Qxd5 {[%clk 0:00:15]}  Nxd5 {[%clk 0:01:39]} 27. d4 {[%clk 0:00:14]}  exd4 {[%clk 0:01:38]} 28. Rxd4 {[%clk 0:00:12]}  c6 {[%clk 0:01:33]} 29. Rdd1 {[%clk 0:00:10]}  Rg8 {[%clk 0:01:31]} 30. Nxd6 {[%clk 0:00:06]}  Rxg4+ {[%clk 0:01:30]} 31. Kh1 {[%clk 0:00:06]}  Rxh4+ {[%clk 0:01:30]} 32. Kg1 {[%clk 0:00:06]}  Nf4 {[%clk 0:01:27]} 33. Nf5 {[%clk 0:00:04]}  Rg4+ {[%clk 0:01:25]} 34. Kh1 {[%clk 0:00:05]}  Ncd3 {[%clk 0:01:24]} 35. Ne3 {[%clk 0:00:04]}  Rh4+ {[%clk 0:01:21]} 36. Kg1 {[%clk 0:00:04]}  Ne5 {[%clk 0:01:22]} 37. Rd6 {[%clk 0:00:03]}  Nf3# {[%clk 0:01:22]} 0-1


[Site "https://www.chess.com"]

[Event "Titled Tuesday Blitz May 30 Late 2023"]
[White "Balla, Tamas-Kristof"]
[Black "Hakobyan, Aram"]
[WhiteFideId "1208497"]
[BlackFideId "13306677"]
[WhiteElo "2334"]
[BlackElo "2584"]
[Result "0-1"]
[Round "01"]
[TimeControl "180+2"]
[Date "2023.05.31"]
[WhiteClock "0:00:00"]
[BlackClock "0:00:10"]

1. e4 {[%clk 0:02:59]}  g6 {[%clk 0:02:59]} 2. d4 {[%clk 0:02:59]}  Bg7 {[%clk 0:03:00]} 3. Nc3 {[%clk 0:02:59]}  c5 {[%clk 0:03:00]} 4. Be3 {[%clk 0:02:58]}  cxd4 {[%clk 0:02:59]} 5. Bxd4 {[%clk 0:02:58]}  Nf6 {[%clk 0:03:00]} 6. e5 {[%clk 0:02:46]}  Nh5 {[%clk 0:02:45]} 7. Be2 {[%clk 0:02:35]}  Nf4 {[%clk 0:02:40]} 8. Bf3 {[%clk 0:02:35]}  Nc6 {[%clk 0:02:41]} 9. Qd2 {[%clk 0:02:28]}  Ne6 {[%clk 0:02:37]} 10. Bxc6 {[%clk 0:02:23]}  dxc6 {[%clk 0:02:29]} 11. Be3 {[%clk 0:01:47]}  Qxd2+ {[%clk 0:02:29]} 12. Bxd2 {[%clk 0:01:47]}  Bxe5 {[%clk 0:02:29]} 13. Nf3 {[%clk 0:01:48]}  Bg7 {[%clk 0:02:29]} 14. O-O {[%clk 0:01:45]}  O-O {[%clk 0:02:28]} 15. Rfe1 {[%clk 0:01:44]}  Re8 {[%clk 0:02:26]} 16. Rad1 {[%clk 0:01:38]}  b6 {[%clk 0:02:22]} 17. b3 {[%clk 0:01:25]}  Bb7 {[%clk 0:02:21]} 18. a4 {[%clk 0:01:25]}  c5 {[%clk 0:02:18]} 19. Ne4 {[%clk 0:01:12]}  Rad8 {[%clk 0:02:17]} 20. h3 {[%clk 0:01:01]}  Nd4 {[%clk 0:02:07]} 21. Nxd4 {[%clk 0:00:59]}  Rxd4 {[%clk 0:02:08]} 22. Ng3 {[%clk 0:00:50]}  Bc6 {[%clk 0:01:03]} 23. Be3 {[%clk 0:00:45]}  Rxd1 {[%clk 0:01:03]} 24. Rxd1 {[%clk 0:00:46]}  f5 {[%clk 0:01:02]} 25. Ne2 {[%clk 0:00:34]}  Kf7 {[%clk 0:01:02]} 26. Nc1 {[%clk 0:00:27]}  e5 {[%clk 0:00:52]} 27. Nd3 {[%clk 0:00:20]}  f4 {[%clk 0:00:50]} 28. Bc1 {[%clk 0:00:20]}  g5 {[%clk 0:00:50]} 29. Nb2 {[%clk 0:00:20]}  Be4 {[%clk 0:00:46]} 30. Nc4 {[%clk 0:00:18]}  Bf8 {[%clk 0:00:38]} 31. Rd7+ {[%clk 0:00:17]}  Kg6 {[%clk 0:00:29]} 32. Rxa7 {[%clk 0:00:17]}  Bxc2 {[%clk 0:00:30]} 33. Bb2 {[%clk 0:00:17]}  Bg7 {[%clk 0:00:23]} 34. Nxb6 {[%clk 0:00:18]}  Bxb3 {[%clk 0:00:23]} 35. Nd7 {[%clk 0:00:16]}  c4 {[%clk 0:00:20]} 36. Ra6+ {[%clk 0:00:10]}  Kf7 {[%clk 0:00:19]} 37. Nc5 {[%clk 0:00:09]}  Re7 {[%clk 0:00:13]} 38. Ne4 {[%clk 0:00:10]}  h6 {[%clk 0:00:12]} 39. Nd6+ {[%clk 0:00:10]}  Kg8 {[%clk 0:00:12]} 40. Ra8+ {[%clk 0:00:10]}  Kh7 {[%clk 0:00:12]} 41. Nf5 {[%clk 0:00:07]}  Rc7 {[%clk 0:00:12]} 42. Nxg7 {[%clk 0:00:07]}  c3 {[%clk 0:00:12]} 43. Bxc3 {[%clk 0:00:05]}  Rxc3 {[%clk 0:00:13]} 44. Nf5 {[%clk 0:00:04]}  e4 {[%clk 0:00:14]} 45. Ra6 {[%clk 0:00:04]}  e3 {[%clk 0:00:08]} 46. Rxh6+ {[%clk 0:00:04]}  Kg8 {[%clk 0:00:08]} 47. fxe3 {[%clk 0:00:04]}  fxe3 {[%clk 0:00:09]} 48. Rg6+ {[%clk 0:00:04]}  Kf7 {[%clk 0:00:08]} 49. Rxg5 {[%clk 0:00:04]}  Rc1+ {[%clk 0:00:09]} 50. Kh2 {[%clk 0:00:04]}  e2 {[%clk 0:00:09]} 51. Nd6+ {[%clk 0:00:01]}  Ke6 {[%clk 0:00:10]} 52. Rg8 {[%clk 0:00:01]}  Kxd6 {[%clk 0:00:10]} 53. Re8 {[%clk 0:00:00]}  Be6 {[%clk 0:00:10]} 0-1


[Site "https://www.chess.com"]

[Event "Titled Tuesday Blitz May 30 Late 2023"]
[White "Makarian, Rudik"]
[Black "Karas, Marek"]
[WhiteFideId "44105681"]
[BlackFideId "14928558"]
[WhiteElo "2461"]
[BlackElo "2233"]
[Result "1-0"]
[Round "01"]
[TimeControl "180+2"]
[Date "2023.05.31"]
[WhiteClock "0:00:21"]
[BlackClock "0:00:13"]

1. d4 {[%clk 0:03:00]}  Nf6 {[%clk 0:02:57]} 2. c4 {[%clk 0:02:59]}  e6 {[%clk 0:02:57]} 3. Nf3 {[%clk 0:02:58]}  d5 {[%clk 0:02:53]} 4. Nc3 {[%clk 0:02:57]}  c5 {[%clk 0:02:46]} 5. cxd5 {[%clk 0:02:57]}  Nxd5 {[%clk 0:02:47]} 6. e4 {[%clk 0:02:57]}  Nxc3 {[%clk 0:02:45]} 7. bxc3 {[%clk 0:02:58]}  cxd4 {[%clk 0:02:45]} 8. cxd4 {[%clk 0:02:59]}  Bb4+ {[%clk 0:02:46]} 9. Bd2 {[%clk 0:02:59]}  Bxd2+ {[%clk 0:02:46]} 10. Qxd2 {[%clk 0:03:00]}  O-O {[%clk 0:02:47]} 11. Bc4 {[%clk 0:03:01]}  Nd7 {[%clk 0:02:47]} 12. O-O {[%clk 0:03:01]}  b6 {[%clk 0:02:47]} 13. Rfe1 {[%clk 0:03:02]}  Bb7 {[%clk 0:02:47]} 14. Rad1 {[%clk 0:03:02]}  Nf6 {[%clk 0:02:44]} 15. d5 {[%clk 0:03:02]}  exd5 {[%clk 0:02:37]} 16. exd5 {[%clk 0:03:03]}  Qd6 {[%clk 0:02:34]} 17. Nh4 {[%clk 0:03:01]}  g6 {[%clk 0:02:25]} 18. Qg5 {[%clk 0:03:00]}  Kh8 {[%clk 0:02:17]} 19. h3 {[%clk 0:02:42]}  Rfe8 {[%clk 0:02:13]} 20. Rxe8+ {[%clk 0:02:05]}  Rxe8 {[%clk 0:02:12]} 21. Nf3 {[%clk 0:02:05]}  Ne4 {[%clk 0:02:00]} 22. Qc1 {[%clk 0:01:57]}  Qf6 {[%clk 0:01:50]} 23. Bb3 {[%clk 0:01:51]}  Rc8 {[%clk 0:01:44]} 24. Qe3 {[%clk 0:01:50]}  Nd6 {[%clk 0:01:40]} 25. Nd4 {[%clk 0:01:45]}  Re8 {[%clk 0:01:37]} 26. Qd3 {[%clk 0:01:41]}  Kg7 {[%clk 0:01:30]} 27. Nc6 {[%clk 0:01:40]}  a6 {[%clk 0:01:14]} 28. g3 {[%clk 0:01:34]}  Qf5 {[%clk 0:01:09]} 29. Qxf5 {[%clk 0:01:25]}  Nxf5 {[%clk 0:01:09]} 30. Kf1 {[%clk 0:01:26]}  Nd6 {[%clk 0:01:05]} 31. h4 {[%clk 0:01:24]}  h5 {[%clk 0:01:05]} 32. Rd2 {[%clk 0:01:16]}  Kf6 {[%clk 0:01:02]} 33. Rd3 {[%clk 0:01:12]}  Ne4 {[%clk 0:00:56]} 34. Rf3+ {[%clk 0:01:01]}  Kg7 {[%clk 0:00:53]} 35. Re3 {[%clk 0:01:00]}  Nd6 {[%clk 0:00:52]} 36. Rxe8 {[%clk 0:00:51]}  Nxe8 {[%clk 0:00:53]} 37. Ke2 {[%clk 0:00:52]}  Nd6 {[%clk 0:00:50]} 38. Ke3 {[%clk 0:00:52]}  Kf6 {[%clk 0:00:50]} 39. Kd4 {[%clk 0:00:51]}  Nb5+ {[%clk 0:00:47]} 40. Ke4 {[%clk 0:00:50]}  Nd6+ {[%clk 0:00:47]} 41. Kf4 {[%clk 0:00:50]}  Bxc6 {[%clk 0:00:34]} 42. dxc6 {[%clk 0:00:51]}  Ne8 {[%clk 0:00:34]} 43. f3 {[%clk 0:00:48]}  Nc7 {[%clk 0:00:32]} 44. g4 {[%clk 0:00:43]}  Ne6+ {[%clk 0:00:21]} 45. Bxe6 {[%clk 0:00:23]}  Kxe6 {[%clk 0:00:21]} 46. gxh5 {[%clk 0:00:23]}  gxh5 {[%clk 0:00:21]} 47. Kg5 {[%clk 0:00:24]}  b5 {[%clk 0:00:20]} 48. Kxh5 {[%clk 0:00:24]}  a5 {[%clk 0:00:21]} 49. Kg4 {[%clk 0:00:22]}  b4 {[%clk 0:00:19]} 50. h5 {[%clk 0:00:23]}  a4 {[%clk 0:00:19]} 51. h6 {[%clk 0:00:22]}  b3 {[%clk 0:00:19]} 52. axb3 {[%clk 0:00:21]}  axb3 {[%clk 0:00:20]} 53. c7 {[%clk 0:00:20]}  Kd7 {[%clk 0:00:13]} 54. c8=Q+ {[%clk 0:00:21]} 1-0


[Site "https://www.chess.com"]

[Event "Titled Tuesday Blitz May 30 Late 2023"]
[White "Zakhartsov, Vladimir"]
[Black "krucki03"]
[WhiteFideId "4145097"]
[WhiteElo "2495"]
[BlackElo "2475"]
[Result "1-0"]
[Round "01"]
[TimeControl "180+2"]
[Date "2023.05.31"]
[WhiteClock "0:00:38"]
[BlackClock "0:00:07"]

1. e4 {[%clk 0:02:55]}  c5 {[%clk 0:02:59]} 2. Nf3 {[%clk 0:02:55]}  d6 {[%clk 0:02:59]} 3. g3 {[%clk 0:02:54]}  Nf6 {[%clk 0:02:50]} 4. Qe2 {[%clk 0:02:54]}  g6 {[%clk 0:02:50]} 5. Bg2 {[%clk 0:02:54]}  Bg7 {[%clk 0:02:51]} 6. h3 {[%clk 0:02:54]}  O-O {[%clk 0:02:51]} 7. O-O {[%clk 0:02:54]}  Qc7 {[%clk 0:02:50]} 8. c3 {[%clk 0:02:54]}  b6 {[%clk 0:02:45]} 9. d4 {[%clk 0:02:49]}  cxd4 {[%clk 0:02:43]} 10. cxd4 {[%clk 0:02:49]}  Ba6 {[%clk 0:02:43]} 11. Qe3 {[%clk 0:02:38]}  Bxf1 {[%clk 0:02:40]} 12. Bxf1 {[%clk 0:02:36]}  Nc6 {[%clk 0:02:13]} 13. Nc3 {[%clk 0:02:34]}  Rac8 {[%clk 0:02:13]} 14. Bd2 {[%clk 0:02:28]}  e6 {[%clk 0:02:09]} 15. Ba6 {[%clk 0:02:14]}  Rcd8 {[%clk 0:02:05]} 16. Rc1 {[%clk 0:02:13]}  Qe7 {[%clk 0:01:47]} 17. a3 {[%clk 0:01:59]}  Nb8 {[%clk 0:01:44]} 18. Bf1 {[%clk 0:01:54]}  Rc8 {[%clk 0:01:43]} 19. Re1 {[%clk 0:01:55]}  a6 {[%clk 0:01:41]} 20. e5 {[%clk 0:01:48]}  dxe5 {[%clk 0:01:40]} 21. dxe5 {[%clk 0:01:46]}  Nfd7 {[%clk 0:01:40]} 22. Qe4 {[%clk 0:01:35]}  Nc5 {[%clk 0:01:37]} 23. Qg4 {[%clk 0:01:31]}  h5 {[%clk 0:01:30]} 24. Qf4 {[%clk 0:01:30]}  Rfd8 {[%clk 0:01:24]} 25. Be3 {[%clk 0:01:19]}  Nd3 {[%clk 0:01:17]} 26. Bxd3 {[%clk 0:01:12]}  Rxd3 {[%clk 0:01:18]} 27. Ne4 {[%clk 0:01:08]}  b5 {[%clk 0:01:02]} 28. Nf6+ {[%clk 0:01:06]}  Bxf6 {[%clk 0:00:50]} 29. exf6 {[%clk 0:01:05]}  Qf8 {[%clk 0:00:51]} 30. Ne5 {[%clk 0:01:00]}  Rd5 {[%clk 0:00:48]} 31. b4 {[%clk 0:00:57]}  Nd7 {[%clk 0:00:42]} 32. Nxd7 {[%clk 0:00:53]}  Rxd7 {[%clk 0:00:43]} 33. Bc5 {[%clk 0:00:53]}  Qd8 {[%clk 0:00:41]} 34. Re5 {[%clk 0:00:43]}  Rd5 {[%clk 0:00:15]} 35. Be7 {[%clk 0:00:40]}  Rxe5 {[%clk 0:00:07]} 36. Bxd8 {[%clk 0:00:38]} 1-0


[Site "https://www.chess.com"]

[Event "Titled Tuesday Blitz May 30 Late 2023"]
[White "Sivakumar, Shaaketh"]
[Black "Ibarra Jerez, Jose Carlos"]
[WhiteFideId "30940176"]
[BlackFideId "2226332"]
[WhiteElo "2174"]
[BlackElo "2638"]
[Result "0-1"]
[Round "01"]
[TimeControl "180+2"]
[Date "2023.05.31"]
[WhiteClock "0:00:30"]
[BlackClock "0:00:06"]

1. e3 {[%clk 0:02:36]}  Nf6 {[%clk 0:02:58]} 2. Nf3 {[%clk 0:02:36]}  g6 {[%clk 0:02:59]} 3. b4 {[%clk 0:02:36]}  Bg7 {[%clk 0:02:59]} 4. Bb2 {[%clk 0:02:37]}  O-O {[%clk 0:02:59]} 5. a3 {[%clk 0:02:38]}  d6 {[%clk 0:02:59]} 6. c4 {[%clk 0:02:38]}  e5 {[%clk 0:02:59]} 7. Be2 {[%clk 0:02:39]}  e4 {[%clk 0:02:03]} 8. Nd4 {[%clk 0:02:35]}  c5 {[%clk 0:02:02]} 9. Nc2 {[%clk 0:02:35]}  Nc6 {[%clk 0:02:02]} 10. Nc3 {[%clk 0:02:32]}  Re8 {[%clk 0:01:59]} 11. O-O {[%clk 0:02:25]}  h5 {[%clk 0:01:58]} 12. d4 {[%clk 0:02:18]}  exd3 {[%clk 0:01:57]} 13. Bxd3 {[%clk 0:02:18]}  Ne5 {[%clk 0:01:57]} 14. Be2 {[%clk 0:02:18]}  Be6 {[%clk 0:01:57]} 15. Nd5 {[%clk 0:02:17]}  Nxd5 {[%clk 0:01:51]} 16. cxd5 {[%clk 0:02:18]}  Bf5 {[%clk 0:01:50]} 17. Bb5 {[%clk 0:02:05]}  Re7 {[%clk 0:01:39]} 18. bxc5 {[%clk 0:01:58]}  dxc5 {[%clk 0:01:40]} 19. Kh1 {[%clk 0:01:50]}  Qb6 {[%clk 0:01:07]} 20. Rb1 {[%clk 0:01:36]}  Rd8 {[%clk 0:00:57]} 21. Bxe5 {[%clk 0:01:28]}  Bxe5 {[%clk 0:00:51]} 22. e4 {[%clk 0:01:23]}  Bxe4 {[%clk 0:00:37]} 23. Bd3 {[%clk 0:01:23]}  Qxb1 {[%clk 0:00:37]} 24. Qxb1 {[%clk 0:01:22]}  Bxd3 {[%clk 0:00:38]} 25. Rd1 {[%clk 0:01:11]}  Rxd5 {[%clk 0:00:30]} 26. Qa2 {[%clk 0:01:11]}  Red7 {[%clk 0:00:29]} 27. Ne3 {[%clk 0:01:10]}  Bc4 {[%clk 0:00:25]} 28. Rxd5 {[%clk 0:01:04]}  Bxa2 {[%clk 0:00:16]} 29. Rxd7 {[%clk 0:01:05]}  b5 {[%clk 0:00:13]} 30. Rxa7 {[%clk 0:01:01]}  Bd4 {[%clk 0:00:12]} 31. Rc7 {[%clk 0:00:59]}  b4 {[%clk 0:00:06]} 32. axb4 {[%clk 0:00:50]}  cxb4 {[%clk 0:00:07]} 33. Nc2 {[%clk 0:00:51]}  b3 {[%clk 0:00:05]} 34. Nxd4 {[%clk 0:00:30]}  b2 {[%clk 0:00:05]} 35. Rb7 {[%clk 0:00:29]}  b1=Q+ {[%clk 0:00:05]} 36. Rxb1 {[%clk 0:00:29]}  Bxb1 {[%clk 0:00:06]} 37. g3 {[%clk 0:00:30]}  Be4+ {[%clk 0:00:05]} 38. f3 {[%clk 0:00:30]}  Bd5 {[%clk 0:00:06]} 39. Kg2 {[%clk 0:00:31]}  Kg7 {[%clk 0:00:06]} 40. Kf2 {[%clk 0:00:32]}  Kf6 {[%clk 0:00:07]} 41. Ke3 {[%clk 0:00:32]}  Ke5 {[%clk 0:00:07]} 42. Ne2 {[%clk 0:00:31]}  g5 {[%clk 0:00:07]} 43. h4 {[%clk 0:00:31]}  gxh4 {[%clk 0:00:06]} 44. gxh4 {[%clk 0:00:31]}  Kf6 {[%clk 0:00:06]} 45. Nf4 {[%clk 0:00:32]}  Bb7 {[%clk 0:00:04]} 46. Nxh5+ {[%clk 0:00:32]}  Kg6 {[%clk 0:00:05]} 47. Ng3 {[%clk 0:00:31]}  Kf6 {[%clk 0:00:04]} 48. Kf4 {[%clk 0:00:32]}  Bc6 {[%clk 0:00:04]} 49. h5 {[%clk 0:00:32]}  Bb7 {[%clk 0:00:05]} 50. Kg4 {[%clk 0:00:32]}  Bc8+ {[%clk 0:00:05]} 51. Kf4 {[%clk 0:00:31]}  Bb7 {[%clk 0:00:06]} 52. Ne4+ {[%clk 0:00:32]}  Kg7 {[%clk 0:00:06]} 53. Nd6 {[%clk 0:00:31]}  Bc6 {[%clk 0:00:05]} 54. Kg5 {[%clk 0:00:31]}  Bxf3 {[%clk 0:00:04]} 55. h6+ {[%clk 0:00:30]}  Kg8 {[%clk 0:00:05]} 56. Kf6 {[%clk 0:00:29]}  Kh7 {[%clk 0:00:03]} 57. Kg5 {[%clk 0:00:29]}  Bd5 {[%clk 0:00:03]} 58. Ne8 {[%clk 0:00:29]}  Be6 {[%clk 0:00:03]} 59. Nf6+ {[%clk 0:00:30]}  Kh8 {[%clk 0:00:03]} 60. Ne4 {[%clk 0:00:30]}  Kh7 {[%clk 0:00:03]} 61. Nc5 {[%clk 0:00:31]}  Bd5 {[%clk 0:00:02]} 62. Nd3 {[%clk 0:00:31]}  Be6 {[%clk 0:00:03]} 63. Nf4 {[%clk 0:00:32]}  Bc4 {[%clk 0:00:03]} 64. Ng2 {[%clk 0:00:31]}  Be6 {[%clk 0:00:03]} 65. Ne3 {[%clk 0:00:32]}  Bb3 {[%clk 0:00:04]} 66. Ng4 {[%clk 0:00:33]}  Be6 {[%clk 0:00:04]} 67. Nf6+ {[%clk 0:00:32]}  Kh8 {[%clk 0:00:05]} 68. Kf4 {[%clk 0:00:32]}  Bb3 {[%clk 0:00:04]} 69. Ke5 {[%clk 0:00:32]}  Be6 {[%clk 0:00:05]} 70. Kd6 {[%clk 0:00:33]}  Ba2 {[%clk 0:00:06]} 71. Ke7 {[%clk 0:00:33]}  Be6 {[%clk 0:00:06]} 72. Kf8 {[%clk 0:00:34]}  Ba2 {[%clk 0:00:06]} 73. Ne4 {[%clk 0:00:30]}  Kh7 {[%clk 0:00:06]} 0-1


[Site "https://www.chess.com"]

[Event "Titled Tuesday Blitz May 30 Late 2023"]
[White "Moroni, Luca Jr"]
[Black "Kielinkei"]
[WhiteFideId "865834"]
[WhiteElo "2569"]
[BlackElo "2472"]
[Result "1-0"]
[Round "01"]
[TimeControl "180+2"]
[Date "2023.05.31"]
[WhiteClock "0:02:14"]
[BlackClock "0:00:00"]

1. d4 {[%clk 0:03:00]}  Nf6 {[%clk 0:02:59]} 2. Nf3 {[%clk 0:03:00]}  e6 {[%clk 0:02:58]} 3. Bf4 {[%clk 0:03:00]}  c5 {[%clk 0:02:57]} 4. e3 {[%clk 0:03:00]}  Nd5 {[%clk 0:02:51]} 5. Bg3 {[%clk 0:02:59]}  Qb6 {[%clk 0:02:51]} 6. Qc1 {[%clk 0:02:53]}  cxd4 {[%clk 0:02:47]} 7. exd4 {[%clk 0:02:54]}  Nc6 {[%clk 0:02:38]} 8. c3 {[%clk 0:02:51]}  Be7 {[%clk 0:02:33]} 9. Nbd2 {[%clk 0:02:51]}  d6 {[%clk 0:02:26]} 10. Bd3 {[%clk 0:02:50]}  O-O {[%clk 0:02:25]} 11. O-O {[%clk 0:02:50]}  f5 {[%clk 0:02:14]} 12. h3 {[%clk 0:02:50]}  Bd7 {[%clk 0:02:08]} 13. Re1 {[%clk 0:02:48]}  Rae8 {[%clk 0:01:50]} 14. Bh2 {[%clk 0:02:46]}  a5 {[%clk 0:01:37]} 15. a3 {[%clk 0:02:46]}  a4 {[%clk 0:01:34]} 16. c4 {[%clk 0:02:36]}  Nf6 {[%clk 0:01:32]} 17. Qc3 {[%clk 0:02:36]}  Na5 {[%clk 0:01:28]} 18. Rac1 {[%clk 0:02:30]}  Rc8 {[%clk 0:00:00]} 19. Qb4 {[%clk 0:02:14]} 1-0


[Site "https://www.chess.com"]